Cogmind - Beta 11.1 @@@ ROGUE MODE // 2022.11.03 @ 21:53:49 Player: Candesce Result: Self-destructed Performance ------------- Evolutions (4) 2000 Regions Visited (13) 2600 Robots Destroyed (155) 775 Value Destroyed (4674) 4674 Prototype IDs (75) 1500 Alien Tech Used (0) 0 Bonus (686) 686 TOTAL SCORE: 12235 Bonus ------- High Alert Combat Kills 33 Follower Combat Kills 53 Aligned with FarCom 300 Met Data Miner 300 Cogmind --------- Core Integrity 628/850 Matter 265/300 Energy 145/150 System Corruption 5% Temperature Cool (0) Movement Hovering (48) Location -6/Data Miner Parts ------- > --- POWER (1) -------- Light Angular Momentum Engine > --- PROPULSION (5) --- Improved Airjet Improved Airjet Combat Airjet Gravmag Array > --- UTILITY (7) ------ Large Storage Unit Advanced Melee Analysis Suite Microactuators Light Regenerative Plating Light Regenerative Plating Hacking Suite Improved Trap Extractor (4/6 Dirty Bomb) > --- WEAPON (2) ------- Makeshift Axe Power Sword > --- INVENTORY (15) --- Fusion Compressor Improved Airjet Combat Airjet Combat Airjet Improved Cooling System Structural Scanner Improved Medium Armor Plating Light Regenerative Plating Cooled Particle Cannon Guided Plasma Cannon Antimatter Cannon Missile Launcher Long-range Missile Launcher Remote Datajack Plasma Cutter Peak State ------------ > --- POWER ------------ Backup Power VII > --- PROPULSION ------- Improved Airjet Improved Airjet Combat Airjet Gravmag Array > --- UTILITY ---------- Advanced Heat Sink Large Storage Unit Advanced Signal Interpreter Advanced Melee Analysis Suite Light Regenerative Plating Light Regenerative Plating Hacking Suite > --- WEAPON ----------- Antimatter Cannon Power Sword > --- INVENTORY -------- Fusion Compressor Improved Airjet Improved Airjet Improved Airjet Combat Airjet Improved Cooling System Microactuators Light Regenerative Plating Plasma Cannon Cooled Particle Cannon Guided Plasma Cannon Missile Launcher Long-range Missile Launcher Remote Datajack Power Sword [Rating: 81] Favorites ----------- Power Light Ion Engine Engine Light Ion Engine Power Core Nuclear Core Propulsion Armored Treads Treads Armored Treads Leg Aluminum Leg Hover Unit Improved Airjet Utility Large Storage Unit Device Improved Terrain Scanner Storage Large Storage Unit Processor Improved Targeting Computer Hackware Hacking Suite Protection Light Regenerative Plating Weapon Enhanced Autogun Energy Gun Small Laser Energy Cannon Light EM Pulse Cannon Ballistic Gun Enhanced Autogun Ballistic Cannon Improved Light Cannon Launcher Grenade Launcher Special Weapon Plasma Cutter Impact Weapon Heavy Mace Slashing Weapon Power Sword Special Melee Weapon Improved Datajack Build | -11 -10 -10 -9 -9 -9 -8 -8 -7 -7 -6 -6 -6 -6 ------- Run | Scr Mat Min Mat Min Exi Min Mat Fac Sto Fac Low Low Dat Slots Evolved 8 | . . . 2 . . . 2 2 . 2 . . . Power . | . . . . . . . . . . . . . . Propulsion 3 | . . . . . . . 1 2 . . . . . Utility 5 | . . . 2 . . . 1 . . 2 . . . Weapon . | . . . . . . . . . . . . . . Parts Attached 189 | 10 13 10 25 2 1 7 32 13 14 22 17 20 3 Power 18 | 2 1 1 4 . . . 3 1 1 2 1 2 . Engine 11 | 2 1 1 1 . . . 2 1 1 . . 2 . Core 7 | . . . 3 . . . 1 . . 2 1 . . Reactor . | . . . . . . . . . . . . . . Propulsion 28 | 2 3 . 2 . . . 7 5 4 4 1 . . Treads 12 | 2 2 . 2 . . . 6 . . . . . . Leg 1 | . 1 . . . . . . . . . . . . Wheel . | . . . . . . . . . . . . . . Hover 15 | . . . . . . . 1 5 4 4 1 . . Flight . | . . . . . . . . . . . . . . Utility 86 | 3 3 4 15 1 . 2 13 6 2 12 11 13 1 Device 54 | 2 1 3 5 1 . 1 7 4 . 7 9 13 1 Storage 4 | 1 1 . 1 . . . . . . 1 . . . Processor 4 | . . . 1 . . . 1 . . 2 . . . Hackware 6 | . . . 1 . . . 2 1 . 2 . . . Protection 18 | . 1 1 7 . . 1 3 1 2 . 2 . . Artifact . | . . . . . . . . . . . . . . Weapon 57 | 3 6 5 4 1 1 5 9 1 7 4 4 5 2 Energy Gun 12 | 2 2 2 1 . . . 4 . . 1 . . . Energy Cannon 6 | . . . 1 . . . 1 . 2 1 . 1 . Ballistic Gun 9 | 1 . . 1 1 . 3 1 . 2 . . . . Ballistic Cannon 5 | . 2 2 . . . . . . . 1 . . . Launcher 9 | . 2 1 1 . . 2 . . 1 . 2 . . Special Weapon 2 | . . . . . . . . . . . . 1 1 Impact Weapon 4 | . . . . . . . 3 . 1 . . . . Slashing Weapon 7 | . . . . . . . . . . 1 2 3 1 Piercing Weapon . | . . . . . . . . . . . . . . Special Melee Weapon 3 | . . . . . 1 . . 1 1 . . . . Unidentified Prototypes 11 | . 1 . 1 . . . 4 . 4 1 . . . Corrupted Parts 2 | . . 1 . . . . 1 . . . . . . System Corruption 9 | . . 4 . . . . 5 . . . . . . Parts Lost 15 | . 1 2 2 . . . 5 1 1 2 1 . . Power 4 | . . 1 . . . . 2 . . . 1 . . Propulsion 1 | . 1 . . . . . . . . . . . . Utility 8 | . . . 2 . . . 3 1 . 2 . . . Weapon 2 | . . 1 . . . . . . 1 . . . . Highest Loss Streak 3 | . 1 1 1 . . . 3 1 1 1 1 . . To Critical Strikes . | . . . . . . . . . . . . . . Average Slot Usage (%) 97 | . 99 95 99 100 100 100 99 99 99 95 92 92 93 Engine 4 | . 14 9 1 . . . 6 3 7 . . 3 6 Core 4 | . . . 9 11 11 11 1 3 . 5 5 2 . Treads 16 | . 25 28 22 22 22 22 27 . . . . . . Hover 10 | . . . . . . . . 37 38 29 26 26 26 Device 9 | . 11 6 6 11 11 6 14 7 2 6 6 9 13 Storage 9 | . 14 14 11 11 11 11 9 7 7 6 6 6 6 Processor 4 | . . . 1 11 11 11 6 . . 5 7 6 6 Hackware 5 | . . . 8 . . . 2 14 15 12 6 6 6 Protection 11 | . 2 7 16 11 11 15 10 6 11 13 17 16 13 Energy Gun 3 | . 14 11 5 . . . . . . 3 . . . Ballistic Gun 4 | . . . 4 15 11 21 7 . 2 1 . . . Ballistic Cannon 2 | . 11 12 4 . . . . . . 1 . . . Launcher 1 | . 2 4 5 6 . . . . . . . . . Impact Weapon 2 | . . . . . . . 8 7 7 . . . . Slashing Weapon 2 | . . . . . . . . . . 5 11 12 11 Special Melee Weapon 1 | . . . . . 10 . . 6 4 . . . . Naked Turns . | . . . . . . . . . . . . . . Heaviest Build 54 | 12 35 35 42 37 37 41 43 44 48 48 53 54 48 Greatest Support 63 | 40 46 46 46 40 40 40 63 62 48 50 50 50 50 Greatest Overweight (x) 15 | . 1 . 1 . . 1 . . 1 . 15 1 . Average Overweight (x) . | . . . . . . . . . . . . . . Largest Inventory Capacity 15 | 8 15 15 15 15 15 15 15 15 15 15 15 15 15 Average Capacity 13 | 7 14 15 15 15 15 15 15 15 15 15 15 15 15 Most Carried 15 | 3 15 15 15 15 15 15 15 15 15 15 15 15 15 Average Carried 11 | 1 12 14 14 15 14 15 14 14 14 14 14 14 15 Final Capacity 15 | 8 15 15 15 15 15 15 15 15 15 15 15 15 15 Final Carried 15 | 3 15 15 15 15 15 15 15 15 15 15 15 15 15 Class Distribution -------------------- 80% | Mutant 14% | Hacker-Mutant 5% | Scavenger-Mutant Dominant Class ---------------- Mutant | -10/Materials Mutant | -10/Mines Mutant | -9/Materials Mutant | -9/Mines Mutant | -9/Exiles Mutant | -8/Mines Mutant | -8/Materials Hacker-Mutant | -7/Factory Hacker-Mutant | -7/Storage Hacker-Mutant | -6/Factory Mutant | -6/Lower Caves Mutant | -6/Lower Caves Scavenger-Mutant | -6/Data Miner Resources | -11 -10 -10 -9 -9 -9 -8 -8 -7 -7 -6 -6 -6 -6 ----------- Run | Scr Mat Min Mat Min Exi Min Mat Fac Sto Fac Low Low Dat Matter Collected 3577 | 302 227 186 485 284 . 133 585 172 136 251 489 327 . Remotely 22 | . . . . . . . . . . . . 22 . Salvage Created 6039 | 144 557 352 891 285 . 130 1720 341 660 215 396 348 . Parts 269 | 10 42 11 60 14 . 13 46 3 17 11 24 18 . Haulers Intercepted 9 | . . . 2 . . . 4 . 2 1 . . . Recyclers Shooed 3 | . 1 . 1 . . . 1 . . . . . . Parts Field Recycled . | . . . . . . . . . . . . . . Retrieved Matter . | . . . . . . . . . . . . . . Parts Self-Destructed 31 | . . . . . . . . . . . 23 8 . Prevented . | . . . . . . . . . . . . . . Kills | -11 -10 -10 -9 -9 -9 -8 -8 -7 -7 -6 -6 -6 -6 ------- Run | Scr Mat Min Mat Min Exi Min Mat Fac Sto Fac Low Low Dat Combat Hostiles Destroyed 106 | 2 15 4 18 4 . 8 29 3 8 2 11 2 . Melee 22 | . . . . . . . 11 2 1 1 5 2 . Guns 26 | 2 6 2 7 4 . 2 3 . . . . . . Cannons 8 | . 4 . 4 . . . . . . . . . . AOE 29 | . 5 2 7 . . 6 . . 3 . 6 . . Classes Destroyed 18 | 3 4 2 3 . . 2 1 1 . . 1 1 . Worker 3 | . . 1 2 . . . . . . . . . . Builder 3 | . . . . . . 1 1 . . 1 . . . Tunneler 9 | 3 . 2 . 2 . 1 . 1 . . . . . Hauler 9 | . . . 2 . . . 4 . 2 1 . . . Recycler 13 | 1 2 3 1 2 . . . 1 3 . . . . Minesweeper 1 | . . . . . . . . . . . 1 . . Mechanic 1 | . 1 . . . . . . . . . . . . Operator 4 | . 1 . 1 . . . 1 1 . . . . . Watcher 11 | . . . 3 . . . 3 3 2 . . . . Swarmer 20 | . 6 . 6 . . 5 . . 3 . . . . Grunt 53 | . 9 . 8 3 . 2 23 1 . . 7 . . Brawler 1 | . . . . . . 1 . . . . . . . Sentry 17 | . . . 4 . . . 5 . 5 2 . 1 . Demolisher 2 | 2 . . . . . . . . . . . . . Hunter 4 | . . . . . . . 1 . . . 3 . . Programmer 3 | . . . . . . . . 2 . . 1 . . Decomposer 1 | . . . . . . . . . . . 1 . . Assembled 5 | . . 4 . 1 . . . . . . . . . Mutant 1 | . . . . . . . . . . . . 1 . Best Kill Streak 5 | 2 3 2 4 2 . 5 4 1 4 1 4 1 . Combat Bots Only 4 | 2 3 2 3 2 . 4 4 1 3 1 4 1 . Max Kills in Single Turn 2 | 2 1 2 2 1 . 2 1 1 2 1 2 1 . Gunslinging . | . . . . . . . . . . . . . . Exploded 2 | . 1 2 2 . . 2 . . 2 . 2 . . Melee 1 | . . . . . . . 1 1 1 1 1 1 . Uniques/NPCs Destroyed . | . . . . . . . . . . . . . . Combat | -11 -10 -10 -9 -9 -9 -8 -8 -7 -7 -6 -6 -6 -6 -------- Run | Scr Mat Min Mat Min Exi Min Mat Fac Sto Fac Low Low Dat Damage Taken 6635 | 264 327 259 593 96 . 66 2344 181 577 507 1074 135 212 Core 889 | 32 11 43 88 20 . . 375 . 98 34 142 10 36 Absorbed by Shields 84 | . . . . . . . 84 . . . . . . Regen/Repaired (Parts) 974 | . . . . . . . 167 42 40 266 407 52 . Core Remaining (%) 68 | 87 . 65 . . . 73 31 . 86 . . . . Volleys Fired 274 | 15 38 20 61 36 . 14 55 . 2 . 13 19 1 Largest 2 | 2 2 2 2 2 . 2 1 . 1 . 1 1 1 Hottest 101 | 80 84 90 101 50 . 50 25 . 36 . 43 30 5 Shots Fired 403 | 30 65 31 95 72 . 20 55 . 2 . 13 19 1 Gun 283 | 30 34 24 56 72 . 12 55 . . . . . . Cannon 68 | . 26 6 34 . . . . . . . . 2 . Launcher 34 | . 5 1 5 . . 8 . . 2 . 13 . . Special 18 | . . . . . . . . . . . . 17 1 Kinetic 224 | 12 26 6 41 72 . 12 55 . . . . . . Thermal 39 | 15 5 . . . . . . . . . . 19 . Explosive 34 | . 5 1 5 . . 8 . . 2 . 13 . . Electromagnetic 105 | 3 29 24 49 . . . . . . . . . . Robot Hit Streak 17 | 7 9 3 17 3 . 3 7 . . . 1 5 2 Robot Miss Streak 5 | 5 4 3 3 2 . 4 3 . . . 2 3 . Penetration Max . | . . . . . . . . . . . . . . Secondary Targets 1 | . 1 . . . . . . . . . . . . Max Gunslinging Chain 1 | . 1 . . . . . . . . . . . . Shots Hit Robots 388 | 20 38 24 61 11 6 4 120 25 25 16 22 15 1 Core Hits 178 | 8 26 16 36 7 . 15 26 1 6 3 27 7 . Critical Kills 4 | . . . . . . . 3 . 1 . . . . Critical Parts Destroyed 24 | . . . . . . . 14 3 4 3 . . . Critical Strikes 30 | . 1 . . . . . 17 3 5 4 . . . Blast 1 | . 1 . . . . . . . . . . . . Smash 28 | . . . . . . . 17 3 5 3 . . . Sever 1 | . . . . . . . . . . 1 . . . Melee Attacks 306 | . . . . . 6 . 131 51 42 43 25 8 . Impact 232 | . . . . . . . 131 47 42 12 . . . Slashing 64 | . . . . . . . . . . 31 25 8 . Piercing . | . . . . . . . . . . . . . . Sneak Attacks 38 | . . . . . 6 . 9 10 7 3 3 . . Combat Hostiles 3 | . . . . . . . 2 1 . . . . . Follow-up Attacks 2 | . . . . . . . . . . . 1 1 . Damage Inflicted 14853 | 206 970 431 1791 226 . 683 4516 1228 1789 700 2027 286 . Guns 2451 | 206 295 204 763 201 . 66 716 . . . . . . Cannons 901 | . 340 107 454 . . . . . . . . . . Explosions 2987 | . 333 108 569 . . 617 64 . 251 . 1045 . . Melee 8347 | . . . . . . . 3732 1228 1538 700 982 167 . Ramming 48 | . 2 12 5 25 . . 4 . . . . . . Kinetic 1917 | 65 340 107 422 201 . 66 716 . . . . . . Thermal 501 | 130 33 23 196 . . . . . . . . 119 . Explosive 2704 | . 333 85 373 . . 617 . . 251 . 1045 . . Electromagnetic 1336 | 11 262 204 795 . . . 64 . . . . . . Impact 6762 | . . . . . . . 3732 1228 1538 264 . . . Slashing 1585 | . . . . . . . . . . 436 982 167 . Piercing . | . . . . . . . . . . . . . . Highest Corruption 5 | . . 4 . . . . 5 3 3 2 3 4 5 Average Corruption 2 | . . 4 . . . . 5 2 3 1 2 3 4 Corruption Purged . | . . . . . . . . . . . . . . Corruption Blocked . | . . . . . . . . . . . . . . Effects 58 | . . . . . . . . 9 15 . 19 15 . Message Errors 17 | . . . . . . . . 2 3 . 8 4 . Matter Fused 10 | . . . . . . . . 4 3 . 1 2 . Heat Flow Errors 4 | . . . . . . . . 1 2 . . 1 . Energy Discharges 9 | . . . . . . . . 1 4 . 3 1 . Data Loss (minor) 11 | . . . . . . . . . 1 . 4 6 . Data Loss (major) 3 | . . . . . . . . . 2 . 1 . . Alerts 4 | . . . . . . . . 1 . . 2 1 . Overload Shots . | . . . . . . . . . . . . . . Overflow Damage 2847 | . 60 . 56 . . 25 1316 640 472 207 71 . . Projectiles 45 | . . . 45 . . . . . . . . . . Explosions 96 | . 60 . 11 . . 25 . . . . . . . Melee 2706 | . . . . . . . 1316 640 472 207 71 . . Knockbacks 22 | . 5 . . . . . 13 3 1 . . . . Impact 17 | . . . . . . . 13 3 1 . . . . Kinetic 5 | . 5 . . . . . . . . . . . . Secondary . | . . . . . . . . . . . . . . Self-Inflicted Damage 43 | . 2 . 35 . . . 6 . . . . . . Shots 4 | . 1 . 2 . . . 1 . . . . . . Rammed 16 | . 1 2 3 9 . . 1 . . . . . . Targets Rammed 20 | . 2 3 3 11 . . 1 . . . . . . Kicked . | . . . . . . . . . . . . . . Crushed 4 | . 1 1 . 2 . . . . . . . . . Highest Temperature 422 | 54 243 422 327 102 . 54 1 207 215 . 27 150 . Average Temperature 74 | 18 75 157 81 34 . 26 1 94 139 . 8 41 . Received Heat Transfer 2041 | . 132 140 174 30 . . 1184 . 144 114 93 30 . Effects 2 | . . 2 . . . . . . . . . . . Matter Decay 1 | . . 1 . . . . . . . . . . . Damage (minor) 1 | . . 1 . . . . . . . . . . . Siege Activations . | . . . . . . . . . . . . . . Robots Corrupted 1 | . . . 1 . . . . . . . . . . Combat Hostiles . | . . . . . . . . . . . . . . Parts Fried 44 | . . . 6 . . . 17 10 11 . . . . Impact Corruptions 83 | . . . . . . . 44 23 13 3 . . . Robots Melted . | . . . . . . . . . . . . . . Combat Hostiles . | . . . . . . . . . . . . . . Parts Melted 2 | . . . 1 . . . . . . . . 1 . Heat Transferred 1032 | 300 75 50 200 . . . . . . . . 407 . Parts Sabotaged . | . . . . . . . . . . . . . . Parts Stolen . | . . . . . . . . . . . . . . Parts Stripped . | . . . . . . . . . . . . . . Power Chain Reactions 5 | . . 1 4 . . . . . . . . . . Missiles Intercepted . | . . . . . . . . . . . . . . Alert | -11 -10 -10 -9 -9 -9 -8 -8 -7 -7 -6 -6 -6 -6 ------- Run | Scr Mat Min Mat Min Exi Min Mat Fac Sto Fac Low Low Dat Peak Influence 484 | 50 394 147 475 276 . 138 484 291 249 309 . . . Initial 219 | . 32 106 . 152 . . 31 219 68 112 . . . Average 111 | 2 206 51 229 115 . 69 174 179 135 136 . . . Maximum Alert Level 2 | . 1 . 2 1 . . 2 1 1 1 . . . Low Security (%) 80 | 100 47 100 55 90 . 100 68 45 89 81 . . . Level 1 16 | . 52 . 24 9 . . 24 54 10 18 . . . Level 2 3 | . . . 19 . . . 6 . . . . . . Level 3 . | . . . . . . . . . . . . . . Level 4 . | . . . . . . . . . . . . . . Level 5 . | . . . . . . . . . . . . . . High Security . | . . . . . . . . . . . . . . Max Security . | . . . . . . . . . . . . . . Squads Dispatched 25 | . 3 . 5 . . . 5 5 3 4 . . . Investigation 15 | . 1 . 5 . . . 3 2 1 3 . . . Extermination 3 | . . . . . . . . 2 . 1 . . . Reinforcement 5 | . 2 . . . . . 2 1 . . . . . Assault 2 | . . . . . . . . . 2 . . . . Garrison . | . . . . . . . . . . . . . . Intercept . | . . . . . . . . . . . . . . Searches Triggered . | . . . . . . . . . . . . . . Construction Impeded 1 | . . . . . . . 1 . . . . . . Haulers Reinforced . | . . . . . . . . . . . . . . Active Scanning Responses . | . . . . . . . . . . . . . . Cargo Convoy Interrupts . | . . . . . . . . . . . . . . Stealth | -11 -10 -10 -9 -9 -9 -8 -8 -7 -7 -6 -6 -6 -6 --------- Run | Scr Mat Min Mat Min Exi Min Mat Fac Sto Fac Low Low Dat Distress Signals 14 | . 1 . 2 . . . 8 . 2 1 . . . Communications Jammed . | . . . . . . . . . . . . . . Distress Signals . | . . . . . . . . . . . . . . Times Spotted 187 | 2 22 6 27 9 . 10 53 8 16 6 15 9 4 Peak Tracking Total 9 | 2 6 3 3 4 . 4 6 4 9 2 4 4 4 Tactical Retreats 25 | . 1 1 2 1 . 1 6 2 5 3 1 2 . Traps | -11 -10 -10 -9 -9 -9 -8 -8 -7 -7 -6 -6 -6 -6 ------- Run | Scr Mat Min Mat Min Exi Min Mat Fac Sto Fac Low Low Dat Traps Triggered 7 | . . . 3 . . . 1 1 . 1 . . 1 Indirectly . | . . . . . . . . . . . . . . Trap Hack Attempts 32 | . . . . . . . . 26 6 . . . . Triggered . | . . . . . . . . . . . . . . Disarmed . | . . . . . . . . . . . . . . Reprogrammed 2 | . . . . . . . . 1 1 . . . . Reused 1 | . . . . . . . . 1 . . . . . Traps Extracted . | . . . . . . . . . . . . . . Installed 2 | . . . . . . . . . . . . . 2 Triggered 1 | . . . . . . . . 1 . . . . . Most Traps Carried 6 | . . . . . . . . . . . 6 6 6 Machines | -11 -10 -10 -9 -9 -9 -8 -8 -7 -7 -6 -6 -6 -6 ---------- Run | Scr Mat Min Mat Min Exi Min Mat Fac Sto Fac Low Low Dat Machines Disabled 9 | . 1 . 3 . . . 3 . 2 . . . . Max in Single Turn 2 | . 1 . 1 . . . 2 . 1 . . . . Garrison Access 3 | . . . . . . . 1 1 . 1 . . . Machines Sabotaged . | . . . . . . . . . . . . . . Garrisons Compromised . | . . . . . . . . . . . . . . Overloaded Fab Kills . | . . . . . . . . . . . . . . Hacking | -11 -10 -10 -9 -9 -9 -8 -8 -7 -7 -6 -6 -6 -6 --------- Run | Scr Mat Min Mat Min Exi Min Mat Fac Sto Fac Low Low Dat Machines Accessed 60 | . 8 1 5 . 2 . 11 9 6 14 1 . 3 Terminals 31 | . 5 . 3 . . . 7 5 6 5 . . . Fabricators 3 | . . . . . . . . 1 . 2 . . . Repair Stations 5 | . 1 . . . . . 1 1 . 2 . . . Recycling Units 5 | . 2 . . . . . 1 . . 2 . . . Scanalyzers 6 | . . . 2 . . . 1 1 . 2 . . . Garrison Access 3 | . . . . . . . 1 1 . 1 . . . Total Hacks 189 | . 24 1 14 . 2 . 38 22 25 38 1 . 24 Successful 131 | . 12 1 13 . 2 . 19 12 18 29 1 . 24 Failed 57 | . 12 . 1 . . . 18 10 7 9 . . . Catastrophic 10 | . 4 . 1 . . . 2 1 1 1 . . . Database Lockouts 1 | . . . . . . . 1 . . . . . . Manual 63 | . 16 . 6 . 1 . 15 3 14 8 . . . Terminals 92 | . 16 . 7 . . . 23 9 25 12 . . . Fabricators 8 | . . . . . . . . 3 . 5 . . . Repair Stations 20 | . 3 . . . . . 2 3 . 12 . . . Recycling Units 14 | . 5 . . . . . 6 . . 3 . . . Scanalyzers 23 | . . . 7 . . . 5 6 . 5 . . . Garrison Access 4 | . . . . . . . 2 1 . 1 . . . Terminal Hacks 71 | . 6 1 4 . 2 . 7 2 17 7 1 . 24 Record 6 | . . . . . 1 . . . . . . . 5 Part Schematic 17 | . 2 . . . . . . . 2 2 . . 11 Robot Schematic 7 | . 2 . . . . . . . . . . . 5 Robot Analysis 5 | . . . . . . . 3 . 1 1 . . . Prototype ID Bank 8 | . 1 . 1 . . . 1 . 1 1 . . 3 Open Door 3 | . . 1 . . . . . . 1 . 1 . . Level Access Points 1 | . . . . . . . . 1 . . . . . Branch Access Points 1 | . . . . . . . . . 1 . . . . Machine Index 1 | . . . . . . . . . . 1 . . . Terminal Index 4 | . . . 1 . . . 1 1 1 . . . . Scanalyzer Index 1 | . . . 1 . . . . . . . . . . Unreport Threat 3 | . . . . . . . 1 . 2 . . . . Locate Traps 3 | . 1 . . . . . . . 2 . . . . Maintenance Status 1 | . . . . . . . . . 1 . . . . Patrol Status 3 | . . . 1 . . . . . 1 1 . . . Recall Investigation 1 | . . . . . . . 1 . . . . . . Recall Reinforcements 1 | . . . . . . . . . 1 . . . . Recall Assault 1 | . . . . . . . . . 1 . . . . Hauler Manifests 1 | . . . . . . . . . . 1 . . . Registered Prototypes 1 | . . . . . . . . . 1 . . . . Zone Layout 1 | . . . . . . . . . 1 . . . . EX-Prototype ID Bank 1 | . . . . . 1 . . . . . . . . Fabricator Hacks 5 | . . . . . . . . 1 . 4 . . . Network Status 2 | . . . . . . . . 1 . 1 . . . Load Schematic 2 | . . . . . . . . . . 2 . . . Build 1 | . . . . . . . . . . 1 . . . Repair Station Hacks 15 | . 1 . . . . . 2 2 . 10 . . . Scan Component 8 | . 1 . . . . . 1 1 . 5 . . . Repair 6 | . . . . . . . 1 1 . 4 . . . Refit 1 | . . . . . . . . . . 1 . . . Recycling Unit Hacks 5 | . 2 . . . . . 2 . . 1 . . . Report Inventory 4 | . 2 . . . . . 1 . . 1 . . . Retrieve Components 1 | . . . . . . . 1 . . . . . . Scanalyzer 16 | . . . 6 . . . 4 4 . 2 . . . Insert Component 8 | . . . 3 . . . 2 2 . 1 . . . Analyze 8 | . . . 3 . . . 2 2 . 1 . . . Garrison Access Hacks 3 | . . . . . . . 1 1 . 1 . . . Seal Access 3 | . . . . . . . 1 1 . 1 . . . Unauthorized Hacks 16 | . 3 . 3 . . . 3 2 1 4 . . . Terminals 8 | . 1 . 2 . . . 2 1 1 1 . . . Assimilate 3 | . . . . . . . 1 1 . 1 . . . Botnet 4 | . 1 . 1 . . . 1 . 1 . . . . Operators 1 | . . . 1 . . . . . . . . . . Fabricators 1 | . . . . . . . . . . 1 . . . Recompile 1 | . . . . . . . . . . 1 . . . Repair Stations 1 | . . . . . . . . 1 . . . . . Mechanics 1 | . . . . . . . . 1 . . . . . Recycling Units 4 | . 2 . . . . . 1 . . 1 . . . Recyclers 3 | . 1 . . . . . 1 . . 1 . . . Tunnel 1 | . 1 . . . . . . . . . . . . Scanalyzers 2 | . . . 1 . . . . . . 1 . . . Extract 2 | . . . 1 . . . . . . 1 . . . Garrison Access . | . . . . . . . . . . . . . . Data Cores Recovered 1 | . 1 . . . . . . . . . . . . Used . | . . . . . . . . . . . . . . Hacking Detections 46 | . 8 . 5 . . . 10 7 5 11 . . . Full Trace Events 7 | . . . 1 . . . 3 1 1 1 . . . Feedback Events 1 | . . . . . . . . 1 . . . . . Hackware Fried 1 | . . . . . . . . 1 . . . . . Feedback Blocked . | . . . . . . . . . . . . . . Robot Schematics Acquired 7 | . 2 . . . . . . . . . . . 5 Robots Built . | . . . . . . . . . . . . . . Authchips . | . . . . . . . . . . . . . . Time . | . . . . . . . . . . . . . . Total Robot Build Rating . | . . . . . . . . . . . . . . Part Schematics Acquired 37 | . 2 . 7 . . . 2 2 2 11 . . 11 Parts Built 2 | . . . . . . . . . . 2 . . . Authchips 1 | . . . . . . . . . . 1 . . . Time 47 | . . . . . . . . . . 47 . . . Total Part Build Rating 10 | . . . . . . . . . . 10 . . . Parts Repaired 6 | . . . . . . . 1 1 . 4 . . . Time 304 | . . . . . . . 38 38 . 228 . . . Parts Recycled . | . . . . . . . . . . . . . . Recycled Matter . | . . . . . . . . . . . . . . Retrieved Matter . | . . . . . . . . . . . . . . Retrieved Components 3 | . . . . . . . 3 . . . . . . Parts Scanalyzed 8 | . . . 3 . . . 2 2 . 1 . . . Part Schematics Acquired 8 | . . . 3 . . . 2 2 . 1 . . . Parts Damaged 1 | . . . 1 . . . . . . . . . . Bothacking | -11 -10 -10 -9 -9 -9 -8 -8 -7 -7 -6 -6 -6 -6 ------------ Run | Scr Mat Min Mat Min Exi Min Mat Fac Sto Fac Low Low Dat Used RIF Installer . | . . . . . . . . . . . . . . Robots Hacked 10 | . . . . . 6 . . 3 . . . . 1 Non-combat 6 | . . . . . 3 . . 3 . . . . . Combat 4 | . . . . . 3 . . . . . . . 1 Robot Hacks Applied 11 | . . . . . 6 . . 4 . . . . 1 parse_system 9 | . . . . . 6 . . 2 . . . . 1 find_chute 1 | . . . . . . . . 1 . . . . . find_recycling 1 | . . . . . . . . 1 . . . . . Relay Couplers Released . | . . . . . . . . . . . . . . Fabnet Peak Effective % . | . . . . . . . . . . . . . . Robots Rewired . | . . . . . . . . . . . . . . Allies Hacked . | . . . . . . . . . . . . . . Hacks Repelled . | . . . . . . . . . . . . . . Allies | -11 -10 -10 -9 -9 -9 -8 -8 -7 -7 -6 -6 -6 -6 -------- Run | Scr Mat Min Mat Min Exi Min Mat Fac Sto Fac Low Low Dat Total Allies 8 | . . . . 3 . . 1 1 2 1 . . . Largest Group 3 | . . . . 3 1 1 1 1 3 1 1 1 1 Highest-Rated Group 88 | . . . . 40 16 16 10 26 88 26 26 26 26 Highest-Rated Ally 31 | . . . . 16 16 16 10 26 31 26 26 26 26 Total Orders 7 | . . . . . . . . 2 . . 2 2 1 STAY 4 | . . . . . . . . 1 . . 1 1 1 FOLLOW 3 | . . . . . . . . 1 . . 1 1 . Ally Attacks 45 | . . . . 34 . . . . 11 . . . . Total Damage 575 | . . . . 387 . . . . 188 . . . . Kills 5 | . . . . 5 . . . . . . . . . Allies Corrupted . | . . . . . . . . . . . . . . Allies Melted . | . . . . . . . . . . . . . . Intel | -11 -10 -10 -9 -9 -9 -8 -8 -7 -7 -6 -6 -6 -6 ------- Run | Scr Mat Min Mat Min Exi Min Mat Fac Sto Fac Low Low Dat Robot Analysis Total 5 | . . . . . . . 3 . 1 1 . . . Derelict Logs Recovered 7 | . . 1 . 2 . . . . . . 1 3 . Drone Launches . | . . . . . . . . . . . . . . Drone Recoveries . | . . . . . . . . . . . . . . Exploration | -11 -10 -10 -9 -9 -9 -8 -8 -7 -7 -6 -6 -6 -6 ------------- Run | Scr Mat Min Mat Min Exi Min Mat Fac Sto Fac Low Low Dat Turns Passed 17856 | 4562 1180 984 1617 1059 498 601 2737 863 738 1136 1155 677 49 Spaces Moved 11946 | 2261 472 544 647 551 286 317 1083 1000 813 1330 1437 1125 80 Core 38 | 5 . . . . . . . . . . 33 . . Treads 6160 | 2256 472 544 647 551 286 317 1083 4 . . . . . Legs . | . . . . . . . . . . . . . . Wheels . | . . . . . . . . . . . . . . Hover 5748 | . . . . . . . . 996 813 1330 1404 1125 80 Flight . | . . . . . . . . . . . . . . Fastest Speed 40 | 50 160 160 160 170 170 170 161 40 40 40 48 48 48 Average Speed 108 | 159 171 160 170 170 170 176 162 40 40 43 67 49 48 Slowest Speed 800 | 160 240 160 250 170 170 250 166 161 102 48 800 108 48 Overloaded Moves . | . . . . . . . . . . . . . . Propulsion Burnouts . | . . . . . . . . . . . . . . Robots Hopped . | . . . . . . . . . . . . . . Cave-ins Triggered . | . . . . . . . . . . . . . . Exploration Rate (%) 71 | 73 73 100 52 92 64 84 69 20 79 31 95 95 74 Regions Visited 13 Branch Regions 8 Pre-discovered Areas 5 | . 1 . . 2 1 . . . . . . . 1 Known Exits Taken 3 | . . . . . . . . . 1 1 1 . . Unknown Exits Taken 10 | 1 1 1 1 1 1 1 1 1 . . . 1 . Scrap Searched 10 | . . 1 . 2 . 1 . . . . 1 5 . Spaces Dug 202 | . 6 12 21 . . . 29 16 28 23 64 3 . Terrain Destroyed 389 | . 24 14 64 . . 20 29 16 28 23 168 3 . Melee 81 | . . . . . . . 29 16 9 23 2 2 . Projectile 2 | . 1 . . . . . . . . . . 1 . AOE 306 | . 23 14 64 . . 20 . . 19 . 166 . . Terrain Rammed . | . . . . . . . . . . . . . . Walls Destroyed . | . . . . . . . . . . . . . . Machines Disabled . | . . . . . . . . . . . . . . Actions | -11 -10 -10 -9 -9 -9 -8 -8 -7 -7 -6 -6 -6 -6 --------- Run | Scr Mat Min Mat Min Exi Min Mat Fac Sto Fac Low Low Dat Total 15951 | 3178 778 626 1074 623 296 340 1823 1377 1149 1820 1579 1200 88 Wait 2945 | 891 222 33 311 23 . 2 470 267 246 381 76 21 2 Move 11933 | 2260 471 543 646 550 285 316 1082 999 812 1329 1436 1124 80 Hop . | . . . . . . . . . . . . . . Pick Up 113 | 2 18 9 12 . 2 . 22 10 10 20 6 2 . Fast Attach 48 | 7 4 1 4 . . 1 10 2 5 8 3 3 . Attach 19 | . . 1 3 . . . 4 3 . 5 2 1 . Detach 5 | . 1 . . . . . 2 . . 1 . 1 . Swap 122 | 3 9 8 18 2 1 6 18 8 9 9 12 16 3 Drop 136 | . 13 8 16 1 2 1 28 11 17 24 8 7 . Fire 274 | 15 38 20 61 36 . 14 55 . 2 . 13 19 1 Melee 302 | . . . . . 6 . 131 51 42 43 23 6 . Ram . | . . . . . . . . . . . . . . Kick . | . . . . . . . . . . . . . . Crush 20 | . 2 3 3 11 . . 1 . . . . . . Escape Stasis . | . . . . . . . . . . . . . . Rewire . | . . . . . . . . . . . . . . Trap 34 | . . . . . . . . 26 6 . . . 2 Miscellaneous . | . . . . . . . . . . . . . . Route ------- -11/Scrapyard -10/Materials (discovered 4 exits: *Mat x3 / *Min) -10/Mines (discovered 2 exits: *Mat x2) -9/Materials (discovered 2 exits: *Mat / [*Min]) -9/Mines (discovered 4 exits: *Mat x2 / *Exi / [*Zio]) -9/Exiles -8/Mines -8/Materials -7/Factory (discovered 5 exits: Fac x4 / *Sto) -7/Storage (discovered 2 exits: *Fac / Rec) -6/Factory (discovered 3 exits: *Fac x2 / *Low) -6/Lower Caves -6/Lower Caves (discovered 2 exits: *Fac / *Dat) -6/Data Miner (discovered 1 exit: [*Pro]) History --------- Turn | Location | Event 3 | -11/Scrapyard | Discovered new exit (range 16) 4286 | -11/Scrapyard | Assembled infested the area 4563 | -11/Scrapyard | Entered Materials 4574 | -10/Materials | Build established: Mutant 4738 | -10/Materials | Discovered new exit (range 15) 4903 | -10/Materials | Discovered new exit (range 7) 5072 | -10/Materials | Discovered new exit (range 13) 5157 | -10/Materials | Discovered new exit (range 16) 5743 | -10/Materials | Entered Mines 5771 | -10/Mines | Learned Materials non-interactive machine intel 5777 | -10/Mines | Discovered new exit (range 12) 5912 | -10/Mines | Found the Drone Emporium 5928 | -10/Mines | Found Prototype Device 6035 | -10/Mines | Assembled infested the area 6040 | -10/Mines | Assisted by a Guerilla fighting off Assembled 6378 | -10/Mines | Received a Rocket Launcher from a helpful Derelict 6656 | -10/Mines | Discovered new exit (range 14) 6727 | -10/Mines | Entered Materials 6727 | -9/Materials | Evolved 2 slots: Utility x2 6728 | -9/Materials | Loaded intel: 34 non-interactive machine locations 7506 | -9/Materials | Discovered new exit (range 15) 7997 | -9/Materials | Discovered new exit (range 8) 8344 | -9/Materials | Entered Mines 8401 | -9/Mines | Found a hidden stash of uninstalled traps 8506 | -9/Mines | Deemed a non-threat by the Exiles lab entrance 8603 | -9/Mines | Assisted by bots powering up and referring to "LRC-V3" 8844 | -9/Mines | A Derelict revealed a hidden shortcut to a safe place 8928 | -9/Mines | Excavation squad dispatched 8928 | -9/Mines | A large section of the Mines collapsed 8982 | -9/Mines | Learned Materials stockpile data 8998 | -9/Mines | Learned location of Storage (-7) 9189 | -9/Mines | Discovered new exit (range 13) 9198 | -9/Mines | Discovered new exit (range 15) 9206 | -9/Mines | Learned location of Zion (-7) 9397 | -9/Mines | Discovered new exit (range 5) 9403 | -9/Mines | Entered Exiles 9403 | -9/Exiles | Accompanied by 1 ally 9447 | -9/Exiles | Met 8R-AWN 9479 | -9/Exiles | Met EX-HEX 9547 | -9/Exiles | Met EX-DEC 9642 | -9/Exiles | Met EX-BIN 9664 | -9/Exiles | Aligned with FarCom system 9666 | -9/Exiles | Given EX-Vault access code 9705 | -9/Exiles | Opened EX-Vault 9716 | -9/Exiles | Found Gui. Plasma Cannon 9752 | -9/Exiles | Warned to stay clear of 0b10 Research branches 9775 | -9/Exiles | Exiles lab attacked by MAIN.C 9883 | -9/Exiles | Discovered new exit (range 14) 9901 | -9/Exiles | Left Exiles lab with Gui. Plasma Cannon 9901 | -9/Exiles | Entered Mines 9901 | -8/Mines | Accompanied by 1 ally 10469 | -8/Mines | Discovered new exit (range 8) 10502 | -8/Mines | Entered Materials 10502 | -8/Materials | Evolved 2 slots: Propulsion x1, Utility x1 11461 | -8/Materials | Repaired Imp. Light Armor Plating 12678 | -8/Materials | Build established: Scavenger-Mutant 12743 | -8/Materials | Core integrity fell below 50% 12774 | -8/Materials | Lost 3 parts (1p2u) 13118 | -8/Materials | Central database locked down 13210 | -8/Materials | Discovered new exit (range 16) 13239 | -8/Materials | Entered Factory 13239 | -7/Factory | Evolved 2 slots: Propulsion x2 13456 | -7/Factory | Hacking Suite fried by hacking feedback 13721 | -7/Factory | Repaired Lgt. Nuclear Core 13780 | -7/Factory | Build established: Hacker-Mutant 13900 | -7/Factory | Identified exit to Factory 14067 | -7/Factory | Discovered new exit (range 9) 14102 | -7/Factory | Entered Storage 14102 | -7/Storage | Accompanied by 1 ally 14107 | -7/Storage | Met a pair of Derelict thieves 14186 | -7/Storage | Identified exit to Recycling 14409 | -7/Storage | Found Prototype Protection 14409 | -7/Storage | Identified Lgt. Regenerative Plating 14411 | -7/Storage | Found Lgt. Regenerative Plating 14414 | -7/Storage | Found Lgt. Regenerative Plating 14415 | -7/Storage | Found Lgt. Regenerative Plating 14837 | -7/Storage | Discovered exit to Factory (range 8) 14840 | -7/Storage | Entered Factory 14840 | -6/Factory | Evolved 2 slots: Utility x2 15181 | -6/Factory | Discovered new exit (range 4) 15183 | -6/Factory | Discovered new exit (range 11) 15189 | -6/Factory | Identified exit to Factory 15194 | -6/Factory | Identified exit to Lower Caves 15343 | -6/Factory | Repaired Cmb. Airjet 15383 | -6/Factory | Repaired Missile Launcher 15454 | -6/Factory | Repaired Imp. Airjet 15524 | -6/Factory | Repaired Imp. Airjet 15773 | -6/Factory | Discovered exit to Factory (range 15) 15808 | -6/Factory | Fabricated Cmb. Airjet? 15976 | -6/Factory | Entered Lower Caves 15976 | -6/Lower Caves | Accompanied by 1 ally 16019 | -6/Lower Caves | Spotted B-75 Beast 16106 | -6/Lower Caves | Build established: Mutant 16287 | -6/Lower Caves | Identified exit to Lower Caves 17131 | -6/Lower Caves | Entered another Lower Caves area 17131 | -6/Lower Caves | Accompanied by 1 ally 17134 | -6/Lower Caves | Learned Factory emergency access door positions 17137 | -6/Lower Caves | Learned 4 Factory zone layouts 17171 | -6/Lower Caves | Discovered exit to Factory (range 6) 17255 | -6/Lower Caves | Attracted the attention of an 0b10 checkpoint 17285 | -6/Lower Caves | Attacked by a delusional Derelict stockpiling parts 17293 | -6/Lower Caves | Learned 4 Factory zone layouts 17577 | -6/Lower Caves | Encountered a Warlord checkpoint 17608 | -6/Lower Caves | Discovered new exit (range 15) 17808 | -6/Lower Caves | Entered Data Miner 17808 | -6/Data Miner | Accompanied by 1 ally 17808 | -6/Data Miner | Discovered new exit (range 6) 17815 | -6/Data Miner | Build established: Scavenger-Mutant 17818 | -6/Data Miner | Met Data Miner 17827 | -6/Data Miner | Learned location of Section 7 (-2) 17827 | -6/Data Miner | Acquired the access code to Warlord's prototype stash 17838 | -6/Data Miner | Received God Mode back door access code from Data Miner 17856 | -6/Data Miner | Data Conduit disabled 17857 | -6/Data Miner | Self-destructed Last Messages --------------- control via the back door I've installed. Now off with you. 17842_ Jacked Data Miner... >>parse_system Reading system data... New IDs: System Mapper Deep Network Scanner Ghost Barrier Quantum Router 17852_ Imp. Trap Extractor dropped Dirty Bomb Trap. 17852_ Installed Dirty Bomb Trap. 17855_ Imp. Trap Extractor dropped Dirty Bomb Trap. 17855_ Installed Dirty Bomb Trap. 17856_ System corruption misinterpreted. 17856_ Triggered Dirty Bomb Trap. 17856_ An explosion rips through the floor. 17856_ Dirty Bomb Trap short circuited. 17856_ Data Conduit disabled. 17856_ An explosion rips through the floor. Map ----- +----------------------------------------------------+ | | | | | | | | | | | | | | | | | | | | | | | | | | | | | | | | | | | ???????????????????????????????????????????????? | | ???????????????????????????????????????????????? | | ???????????????????????????????????????????????? | | ??????????????????????????????????######???????? | | ???????#############????#######?########???????? | | ?????####################;;#;;###### ##???????? | | ?????"""""""""""""######g;g;g;g### ##???????? | | ????""""""" """"" ; ## < ########??? | | ????""""""" @ #######??? | | ???""""" ##??? | | ???""""" ##??? | | ???"""" ##??? | | ???""""" ###??? | | ????"""" " " """"""#######??? | | ????""""" """"####################???? | | ????""""" """""##################???????? | | ?????"""""" "########?????????????????????? | | ?????#####"## "######???????????????????????? | | ?????#####"### "##???????????????????????????? | | ????????##"### "##???????????????????????????? | | ?????????#"## "##???????????????????????????? | | ??????????"## "##???????????????????????????? | | ??????????"# "##???????????????????????????? | | ??????????"### "###??????????????????????????? | | ??????????"### "###??????????????????????????? | | ??????????"### ""##??????????????????????????? | | ???????"##"## ""##??????????????????????????? | | ???????"##"#"X ""#####???????????????????????? | | ???????"""""" "#####???????????????????????? | | ???????#""""" X"""""#???????????????????????? | | ???????###"#"X "##"##???????????????????????? | | ???????###"## X""""##???????????????????????? | | ????????##"### "##"##???????????????????????? | +----------------------------------------------------+ Best States ------------- Heat Dissipation 64 Energy Generation 25 Energy Capacity 310 Matter Stores 300 Matter Capacity 300 Sight Range 16 Terrain Scan Range 16 Terrain Scan Density 10 ECM Strength 2 Armor Coverage 525 Resistance: KI 20 Melee Speed Boost 20 Evasion (%) 57 Targeting Accuracy 6 Melee Accuracy 8 Recoil Reduction 3 Force Boost 20 Offensive Hacking 30 Authchip Count 1 Trap Extractor Capacity 6 Item Schematics ----------------- Hcp. Storage Unit | -10/Materials | Hacked Huge Storage Unit | -10/Materials | Hacked Cmb. Airjet | -9/Materials | Scanalyzed Hvy. Ion Engine | -9/Materials | Scanalyzed Enh. Autogun | -9/Materials | Scanalyzed Lgt. EM Pulse Cannon | -9/Materials | Extracted Cld. Ion Engine | -9/Materials | Extracted Heat Sink | -9/Materials | Extracted Imp. Targeting Computer | -9/Materials | Extracted Lgt. Fission Core | -8/Materials | Scanalyzed Arm. Treads | -8/Materials | Scanalyzed Imp. Cooling System | -7/Factory | Scanalyzed Hrd. Heavy Armor Plating | -7/Factory | Scanalyzed Mass Driver | -7/Storage | Hacked Powered Armor | -7/Storage | Hacked Hacking Suite | -6/Factory | Extracted Proton Cannon | -6/Factory | Extracted Imp. Shield Generator | -6/Factory | Extracted Imp. EM Pulse Cannon | -6/Factory | Extracted Corruption Screen | -6/Factory | Extracted Arc Projector | -6/Factory | Extracted Imp. Medium Treads | -6/Factory | Extracted Propulsion Shielding | -6/Factory | Extracted Mic. Nuclear Core | -6/Factory | Scanalyzed Linear Gravjet | -6/Factory | Hacked Imp. Transmission Jammer | -6/Factory | Hacked Combat Drone Bay | -6/Data Miner | Free Lgt. Regenerative Plating | -6/Data Miner | Free Cld. Nuclear Pulse Thruster | -6/Data Miner | Free Prc. Matter Filter | -6/Data Miner | Free Imp. KE Penetrator | -6/Data Miner | Free Lgt. Particle Reactor | -6/Data Miner | Free Myomer Leg | -6/Data Miner | Free Point Defense Array | -6/Data Miner | Free Hvy. Disruptor Cannon | -6/Data Miner | Free Arm. Medium Treads | -6/Data Miner | Free Adv. Medium Treads | -6/Data Miner | Free Robot Schematics ------------------ M-13 Machinist | -10/Materials | Hacked O-16 Technician | -10/Materials | Hacked H-66 Slayer | -6/Data Miner | Free B-48 Gladiator | -6/Data Miner | Free M-22 Extractor | -6/Data Miner | Free E-15 Imp | -6/Data Miner | Free R-10 Processor | -6/Data Miner | Free Fabricated ------------ Cmb. Airjet | x2 | -6/Factory | Authchip Alien Tech Used ----------------- None Achievements -------------- None Challenges ------------ None Game ------ Seed ThiefFissionComputer Manual? 0 Play Time 04:14:52 Cumulative 98.2 hours Start 2022.10.26 @ 13:08:19 End 2022.11.03 @ 21:53:49 Sessions 29 Manual Loads 0 Difficulty Rogue Special Mode None Game No. 154 Rogue 154 Adventurer 0 Explorer 0 Win Type - Total 1 Types 0/0/0/1/0/0/0/0/0 Lore% 57 Gallery% 65 Achievement% 49 Wizard Run 0 Options --------- ASCII 0 Keyboard 0 Movement Numpad Keybinds 0 Fullscreen 1 Font 14/SmallcapsGlow Map View 84x54 Tactical HUD 1 Map Filters NONE Filters NONE Steam 1 RUN: aba6831c-cf37-4416-addf-065b4a6cf45b